Cogmind - Beta 9.1 *** ADVENTURER MODE // 2019.10.30 @ 18:30:49 Player: Scandroid Result: Self-destructed Performance ------------- Evolutions (1) 500 Regions Visited (3) 600 Robots Destroyed (40) 200 Value Destroyed (618) 618 Prototype IDs (4) 80 Alien Tech Used (0) 0 Bonus (-60) -60 TOTAL SCORE: 1938 Bonus ------- Follower Combat Kills 57 Friendly Fire -117 Cogmind --------- Core Integrity 336/400 Matter 300/300 Energy 67/125 System Corruption 0% Temperature Cool (60) Location -9/Materials Parts ------- Power (1) Light Ion Engine Propulsion (4) Flight Unit Flight Unit Flight Unit Utility (2) High-capacity Storage Unit Visual Processing Unit Weapon (2) Inventory (12) Flight Unit Flight Unit Large Battery (300) Light Armor Plating Assault Rifle Peak State ------------ Power Light Ion Engine Propulsion Aluminum Leg Aluminum Leg Utility High-capacity Storage Unit Visual Processing Unit Weapon Spread Laser Spread Laser Inventory Light Ion Engine Compact Wheel Flight Unit Flight Unit Flight Unit Flight Unit Large Battery Light Armor Plating EM Pulse Gun Assault Rifle Assault Rifle [Rating: 11] Favorites ----------- Power Light Ion Engine Engine Light Ion Engine Propulsion Aluminum Leg Treads Light Treads Leg Aluminum Leg Flight Unit Flight Unit Utility High-capacity Storage Unit Storage High-capacity Storage Unit Processor Visual Processing Unit Weapon EM Pulse Gun Energy Gun EM Pulse Gun Ballistic Gun Assault Rifle Special Weapon Mining Laser Build | -11 -10 -10 -9 ------- Run | Scr Mat Min Mat Slots Evolved 2 | . . . 2 Power . | . . . . Propulsion 2 | . . . 2 Utility . | . . . . Weapon . | . . . . Parts Attached 29 | 6 12 3 8 Power 2 | 1 . . 1 Engine 2 | 1 . . 1 Core . | . . . . Reactor . | . . . . Propulsion 12 | 2 4 2 4 Treads 2 | . . 2 . Leg 4 | 2 2 . . Wheel . | . . . . Hover . | . . . . Flight 6 | . 2 . 4 Utility 3 | 1 2 . . Device . | . . . . Storage 2 | 1 1 . . Processor 1 | . 1 . . Hackware . | . . . . Protection . | . . . . Artifact . | . . . . Weapon 12 | 2 6 1 3 Energy Gun 8 | . 6 . 2 Energy Cannon . | . . . . Ballistic Gun 2 | 2 . . . Ballistic Cannon . | . . . . Launcher . | . . . . Special Weapon 2 | . . 1 1 Impact Weapon . | . . . . Slashing Weapon . | . . . . Piercing Weapon . | . . . . Special Melee Weapon . | . . . . Unidentified Prototypes . | . . . . Parts Lost 9 | . 2 1 6 Power 1 | . . . 1 Propulsion 3 | . 1 1 1 Utility . | . . . . Weapon 5 | . 1 . 4 Highest Loss Streak 5 | . 2 1 5 Average Slot Usage (%) 95 | . 93 96 97 Engine 13 | . 14 14 10 Treads 8 | . . 22 . Leg 13 | . 24 2 . Flight 4 | . . . 42 Storage 13 | . 14 14 11 Processor 12 | . 12 14 11 Energy Gun 24 | . 24 26 20 Ballistic Gun 1 | . 3 . . Naked Turns . | . . . . Heaviest Build 41 | 11 41 39 40 Greatest Support 40 | 20 20 40 16 Greatest Overweight (x) 12 | . 4 12 3 Average Overweight (x) 1 | . 1 . 2 Largest Inventory Capacity 14 | 6 14 12 12 Average Capacity 11 | 5 11 12 12 Most Carried 12 | 5 12 12 11 Average Carried 9 | 2 8 10 7 Final Capacity 12 | 6 12 12 12 Final Carried 12 | 3 10 12 5 Class Distribution -------------------- 100% | Mutant Dominant Class ---------------- Mutant | -10/Materials Mutant | -10/Mines Mutant | -9/Materials Resources | -11 -10 -10 -9 ----------- Run | Scr Mat Min Mat Matter Collected 570 | 206 216 69 79 Remotely . | . . . . Salvage Created 1072 | . 596 223 253 Parts 72 | . 43 23 6 Haulers Intercepted . | . . . . Recyclers Shooed 1 | . . . 1 Parts Field Recycled . | . . . . Retrieved Matter . | . . . . Parts Self-Destructed . | . . . . Prevented . | . . . . Kills | -11 -10 -10 -9 ------- Run | Scr Mat Min Mat Combat Hostiles Destroyed 18 | . 10 5 3 Guns 18 | . 10 5 3 Classes Destroyed 8 | . 7 . 1 Worker 7 | . 5 1 1 Builder 5 | . 4 1 . Tunneler 4 | . 2 2 . Recycler 3 | . 2 . 1 Watcher 2 | . 2 . . Swarmer 8 | . 3 5 . Grunt 9 | . 7 1 1 Sentry 2 | . . . 2 Best Kill Streak 6 | . 6 3 2 Combat Bots Only 5 | . 5 2 1 Max Kills in Single Turn 1 | . 1 1 1 Gunslinging . | . . . . Exploded . | . . . . Melee . | . . . . Uniques/NPCs Destroyed . | . . . . Combat | -11 -10 -10 -9 -------- Run | Scr Mat Min Mat Damage Taken 696 | . 336 92 268 Core 127 | . 63 . 64 Absorbed by Shields . | . . . . Core Remaining (%) 87 | 100 . 74 . Volleys Fired 98 | . 50 24 24 Largest 2 | . 2 2 2 Hottest 130 | . 130 100 105 Shots Fired 175 | . 96 42 37 Gun 172 | . 96 39 37 Cannon . | . . . . Launcher . | . . . . Special 3 | . . 3 . Kinetic 10 | . 10 . . Thermal 91 | . 78 3 10 Explosive . | . . . . Electromagnetic 74 | . 8 39 27 Robot Hit Streak 17 | . 17 9 15 Robot Miss Streak 6 | . 6 2 4 Penetration Max . | . . . . Secondary Targets 1 | . 1 . . Max Gunslinging Chain 1 | . 1 . . Shots Hit Robots 135 | . 87 19 29 Core Hits 111 | . 87 12 12 Critical Hits . | . . . . Critical Kills . | . . . . Critical Parts Destroyed . | . . . . Melee Attacks . | . . . . Impact . | . . . . Slashing . | . . . . Piercing . | . . . . Sneak Attacks . | . . . . Combat Hostiles . | . . . . Follow-up Attacks . | . . . . Damage Inflicted 1631 | . 1005 283 343 Guns 1588 | . 1005 240 343 Cannons . | . . . . Explosions 43 | . . 43 . Melee . | . . . . Ramming . | . . . . Kinetic 82 | . 82 . . Thermal 954 | . 853 43 58 Explosive . | . . . . Electromagnetic 595 | . 70 240 285 Impact . | . . . . Slashing . | . . . . Piercing . | . . . . Highest Corruption 3 | . 3 3 . Average Corruption 2 | . 2 3 . Corruption Purged . | . . . . Effects 31 | . 13 18 . Message Errors 10 | . 5 5 . Matter Fused 9 | . 2 7 . Heat Flow Errors 4 | . 2 2 . Energy Discharges 1 | . . 1 . Data Loss (minor) 4 | . 2 2 . Targeting Errors 3 | . 2 1 . Overload Shots . | . . . . Overflow Damage 69 | . 69 . . Projectiles . | . . . . Explosions 69 | . 69 . . Melee . | . . . . Knockbacks . | . . . . Impact . | . . . . Kinetic . | . . . . Secondary . | . . . . Self-Inflicted Damage 90 | . 90 . . Shots 1 | . 1 . . Rammed . | . . . . Targets Rammed . | . . . . Kicked . | . . . . Crushed . | . . . . Highest Temperature 447 | . 447 255 144 Average Temperature 89 | . 120 43 41 Received Heat Transfer 303 | . 129 36 138 Effects 2 | . 2 . . Shutdowns 1 | . 1 . . Energy Bleed 1 | . 1 . . Siege Activations . | . . . . Robots Corrupted . | . . . . Combat Hostiles . | . . . . Parts Fried 2 | . 1 . 1 Impact Corruptions . | . . . . Robots Melted . | . . . . Combat Hostiles . | . . . . Parts Melted 2 | . 1 . 1 Heat Transferred 1175 | . 1055 50 70 Parts Sabotaged . | . . . . Parts Stolen . | . . . . Parts Stripped . | . . . . Power Chain Reactions 1 | . . 1 . Missiles Intercepted . | . . . . Alert | -11 -10 -10 -9 ------- Run | Scr Mat Min Mat Peak Influence 205 | . 205 106 192 Average Influence 47 | . 51 38 73 Maximum Alert Level 1 | . 1 . . Low Security (%) 98 | . . . . Level 1 1 | . . . . Level 2 . | . . . . Level 3 . | . . . . Level 4 . | . . . . Level 5 . | . . . . High Security . | . . . . Max Security . | . . . . Squads Dispatched 3 | . 2 . 1 Investigation 3 | . 2 . 1 Extermination . | . . . . Reinforcement . | . . . . Assault . | . . . . Garrison . | . . . . Intercept . | . . . . Construction Impeded . | . . . . Haulers Reinforced . | . . . . Stealth | -11 -10 -10 -9 --------- Run | Scr Mat Min Mat Distress Signals 3 | . . . 3 Communications Jammed . | . . . . Distress Signals . | . . . . Times Spotted 40 | . 18 10 12 Peak Tracking Total 6 | . 3 3 6 Tactical Retreats 1 | . . 1 . Traps | -11 -10 -10 -9 ------- Run | Scr Mat Min Mat Traps Triggered 7 | . 7 . . Indirectly . | . . . . Trap Hack Attempts . | . . . . Triggered . | . . . . Disarmed . | . . . . Reprogrammed . | . . . . Reused . | . . . . Traps Extracted . | . . . . Installed . | . . . . Triggered . | . . . . Machines | -11 -10 -10 -9 ---------- Run | Scr Mat Min Mat Machines Disabled 5 | . 2 2 1 Max in Single Turn 2 | . 2 1 1 Machines Sabotaged . | . . . . Garrisons Compromised . | . . . . Overloaded Fab Kills . | . . . . Fab Network Shutdowns . | . . . . Hacking | -11 -10 -10 -9 --------- Run | Scr Mat Min Mat Machines Accessed 7 | . 5 . 2 Terminals 6 | . 4 . 2 Fabricators . | . . . . Repair Stations . | . . . . Recycling Units 1 | . 1 . . Scanalyzers . | . . . . Garrison Access . | . . . . Total Hacks 17 | . 10 . 7 Successful 8 | . 5 . 3 Failed 9 | . 5 . 4 Catastrophic . | . . . . Database Lockouts . | . . . . Manual . | . . . . Terminals 16 | . 9 . 7 Fabricators . | . . . . Repair Stations . | . . . . Recycling Units 1 | . 1 . . Scanalyzers . | . . . . Garrison Access . | . . . . Terminal Hacks 7 | . 4 . 3 Prototype ID Bank 2 | . 1 . 1 Level Access Points 1 | . 1 . . Surveillance Status 1 | . . . 1 Recall Investigation 1 | . . . 1 Zone Layout 2 | . 2 . . Fabricator Hacks . | . . . . Repair Station Hacks . | . . . . Recycling Unit Hacks 1 | . 1 . . Report Inventory 1 | . 1 . . Scanalyzer . | . . . . Garrison Access Hacks . | . . . . Unauthorized Hacks . | . . . . Terminals . | . . . . Fabricators . | . . . . Repair Stations . | . . . . Recycling Units . | . . . . Scanalyzers . | . . . . Garrison Access . | . . . . Data Cores Recovered 1 | . . . 1 Used 1 | . . . 1 Hacking Detections 5 | . 3 . 2 Full Trace Events 4 | . 2 . 2 Feedback Events . | . . . . Feedback Blocked . | . . . . Robot Schematics Acquired . | . . . . Robots Built . | . . . . Matter . | . . . . Time . | . . . . Total Robot Build Rating . | . . . . Part Schematics Acquired . | . . . . Parts Built . | . . . . Matter . | . . . . Time . | . . . . Total Part Build Rating . | . . . . Parts Repaired . | . . . . Time . | . . . . Parts Recycled . | . . . . Recycled Matter . | . . . . Retrieved Matter . | . . . . Retrieved Components . | . . . . Parts Scanalyzed . | . . . . Part Schematics Acquired . | . . . . Parts Damaged . | . . . . Bothacking | -11 -10 -10 -9 ------------ Run | Scr Mat Min Mat Used RIF Installer . | . . . . Robots Hacked . | . . . . Non-combat . | . . . . Combat . | . . . . Robot Hacks Applied . | . . . . Relay Couplers Released . | . . . . Robots Rewired . | . . . . Allies Hacked . | . . . . Hacks Repelled . | . . . . Allies | -11 -10 -10 -9 -------- Run | Scr Mat Min Mat Total Allies 3 | . . 3 . Largest Group 3 | . . 3 2 Highest-Rated Group 40 | . . 40 32 Highest-Rated Ally 16 | . . 16 16 Total Orders . | . . . . Ally Attacks 26 | . . 12 14 Total Damage 293 | . . 109 184 Kills 4 | . . 3 1 Allies Corrupted . | . . . . Allies Melted . | . . . . Intel | -11 -10 -10 -9 ------- Run | Scr Mat Min Mat Robot Analysis Total . | . . . . Derelict Logs Recovered 2 | . . 2 . Drone Launches . | . . . . Drone Recoveries . | . . . . Exploration | -11 -10 -10 -9 ------------- Run | Scr Mat Min Mat Turns Passed 3541 | 69 1799 1320 353 Spaces Moved 1754 | 50 899 682 123 Core 14 | 7 . 7 . Treads 585 | . . 585 . Legs 1032 | 43 899 90 . Wheels . | . . . . Hover . | . . . . Flight 123 | . . . 123 Fastest Speed 50 | 50 120 160 191 Average Speed 175 | 110 179 171 193 Slowest Speed 650 | 120 240 650 274 Overloaded Moves . | . . . . Propulsion Burnouts . | . . . . Robots Hopped . | . . . . Cave-ins Triggered . | . . . . Exploration Rate (%) 48 | 3 94 81 14 Regions Visited 3 Branch Regions 1 Pre-discovered Areas . | . . . . Known Exits Taken 1 | . . 1 . Unknown Exits Taken 2 | 1 1 . . Scrap Searched 1 | . . 1 . Spaces Dug . | . . . . Terrain Destroyed 11 | . 5 6 . Melee . | . . . . Projectile . | . . . . AOE 11 | . 5 6 . Actions | -11 -10 -10 -9 --------- Run | Scr Mat Min Mat Total 2041 | 64 991 784 202 Wait 124 | . 12 68 44 Move 1751 | 49 898 681 123 Hop . | . . . . Pick Up 29 | 9 14 6 . Fast Attach . | . . . . Attach 22 | 6 8 2 6 Detach 4 | . 3 . 1 Swap 7 | . 4 1 2 Drop 6 | . 2 2 2 Fire 98 | . 50 24 24 Melee . | . . . . Ram . | . . . . Kick . | . . . . Crush . | . . . . Escape Stasis . | . . . . Rewire . | . . . . Trap . | . . . . Miscellaneous . | . . . . Route ------- -11/Scrapyard -10/Materials (discovered 5 exits: *Mat x3 / [*Min x2]) -10/Mines (discovered 3 exits: *Mat x2 / [*Exi]) -9/Materials History --------- Turn | Location | Event 4 | -11/Scrapyard | Discovered new exit (range 16) 70 | -11/Scrapyard | Entered Materials 284 | -10/Materials | Discovered new exit (range 16) 301 | -10/Materials | Build established: Mutant 387 | -10/Materials | Discovered new exit (range 18) 387 | -10/Materials | Identified exit to Materials 529 | -10/Materials | Discovered new exit (range 16) 1869 | -10/Materials | Entered Mines 1947 | -10/Mines | Assisted by bots powering up and referring to "LRC-V3" 2030 | -10/Mines | Discovered exit to Materials (range 12) 2070 | -10/Mines | Joined a pair of Derelicts in attacking an 0b10 outpost 2366 | -10/Mines | Learned Materials stockpile data 2535 | -10/Mines | Deemed a non-threat by the Exiles lab entrance 2536 | -10/Mines | Discovered new exit (range 5) 2941 | -10/Mines | Excavation squad dispatched 2941 | -10/Mines | A large section of the Mines collapsed 3179 | -10/Mines | Discovered exit to Materials (range 6) 3189 | -10/Mines | Entered Materials 3189 | -9/Materials | Accompanied by 2 allies 3189 | -9/Materials | Evolved 2 slots: Propulsion x2 3542 | -9/Materials | Self-destructed Last Messages --------------- 03464_ K-01 Serf cleans the Terminal. 03465_ R-06 Scavenger collects Wheel. 03468_ K-01 Serf collects debris. 03469_ R-06 Scavenger collects Com. Wheel. 03485_ G-34 Mercenary destroyed. 03485_ Door malfunctions. 03499_ U-05 Engineer repairs door. 03504_ Lgt. Ion Engine destroyed. 03515_ Spread Laser destroyed. 03518_ Y-45 Defender misfires. 03521_ Flight Unit destroyed. 03524_ Mining Laser destroyed. 03526_ Heat Sink fried. 03526_ Y-45 Defender destroyed. 03528_ Acquired 10 matter. 03534_ C-30 ARC bursts open, deploying its payload. 03534_ G-47 Trooper unfolds itself. 03534_ G-34 Mercenary unfolds itself. 03534_ W-16 Scout distress signal alerts nearby ally. 03542_ EM Pulse Gun destroyed. Map ----- +----------------------------------------------------+ | ?????????????????????????????????????????????????? | | ?????????????????????????????????????????????????? | | ?????????????????????????????????????????????????? | | ?????????????????????????????????????????????????? | | ?????????????????????????????????????????????????? | | ?????????????????????????????????????????????????? | | ?????????????????????????????????????????????????? | | ?????????????????????????????????????????????????? | | ?????????????????????????????????????????????????? | | ?????????????????????????????????????????????????? | | ?????????????????????????????????????????????????? | | ?????????????????????????????????????????????????? | | ?????????????????????????????????????????????????? | | ?????????????????????????????????????????????????? | | ????????????????????????????????????????????[????[ | | ?????????????????????????????????????????????????? | | ?????????????????????????????????????????????????? | | ?????????????????????########????????????????????? | | ?????????????????????#! #????????????????????? | | ?????????????????????# """ #????????????????????? | | ?????????????????????# """ #????????????????????? | | ?????????????????????# """ #????????????????????? | | ?????????????????????#= #????????????????????? | | ?????????????????????# =% #???#######??????????? | | ?????????????????????####/####### #??????????? | | ???????????????######## =@ l g u### ####???? | | ??????????? + g T g #???? | | ??????????? ###### w %g% ### #???? | | ??????????????????????########+## #??????????? | | ???????????????????????????? ###%###??????????? | | ?????????????????????????? =]] #?# #????????????? | | ?????????????????????????# =] #?# #????????????? | | ?????????????????????????# ]] #?# #????????????? | | ?????????????????????????# #?# #???????/????? | | ?????????????????????????# #?# #??????? ???? | | ?????????????????????????########?# #??????? ??? | | ??????????????????????????????????# #?????? ??? | | ???????????????????????????########+#?????? ??? | | ???????????????????????????# #?????? ???? | | ???????????????????????????# """ #?????? ???? | | ???????????????????????????# "T" #?????? ???? | | ???????????????????????????# #?????? ????? | | ???????????????????????????# #?????? ????? | | ??????????????????????????## """ #????##+###### | | ??????????????????????????# """ #????# | | ??????????????????????????## %"!" #????# | | ???????????????????????????# %[ #????# """ | | ???????????????????????????#####+####????# """" | | ?????????????????????????????# ####### """" | | ?????????????????????????????# % ] | +----------------------------------------------------+ Best States ------------- Heat Dissipation 28 Energy Generation 10 Energy Capacity 125 Matter Stores 300 Matter Capacity 300 Sight Range 18 Terrain Scan Density 10 Resistance: KI 20 Resistance: TH 20 Resistance: EX 20 Resistance: EM 20 Resistance: I 20 Resistance: S 20 Resistance: P 20 Evasion (%) 40 Recoil Reduction 2 Item Schematics ----------------- None Robot Schematics ------------------ None Fabricated ------------ Nothing Alien Tech Used ----------------- None Achievements -------------- Backstab Challenges ------------ None Game ------ Seed AdvancedCloakTorch Manual? 0 Play Time 00:30:53 Cumulative 12.2 hours Start 2019.10.30 @ 06:21:17 End 2019.10.30 @ 18:30:49 Sessions 5 Manual Loads 0 Difficulty Adventurer Special Mode None Game No. 23 Rogue 5 Adventurer 9 Explorer 0 Win Type - Total 0 Types 0/0/0/0/0/0/0 Lore% 13 Gallery% 19 Achievement% 15 Wizard Run 0 Options --------- ASCII 0 Keyboard 0 Movement Arrows Keybinds 0 Fullscreen 2 Font 18/SmallcapsGlow Map View 76x50 Tactical HUD 1 Map Filters NONE Filters NONE Steam 1 RUN: 0058d84f-8d50-470a-9b2c-a4efec5d2a15